bitfinex-derivatives/quotes_ETHF0:USTF0_20260117
["timestamp","ask_amount","ask_price","bid_price","bid_amount"]
[1768670872845,0.97956454,3326.5,3325.0,1.09576509]
[1768670873053,1.82128597,3326.6,3325.0,1.09576509]
[1768670873243,0.97956475,3326.5,3325.0,1.09576509]
[1768670873438,1.82128597,3326.6,3325.0,1.09576509]
[1768670873643,0.9795507,3326.5,3325.0,1.09576509]
[1768670873843,1.82128597,3326.6,3325.0,1.09576509]
[1768670874452,0.14128597,3326.6,3325.0,1.09576509]
[1768670874848,0.97955125,3326.5,3325.0,1.09576509]
[1768670875049,0.14128597,3326.6,3325.0,1.09576509]
[1768670875248,0.97955561,3326.5,3325.0,1.09576509]
[1768670875450,0.14128597,3326.6,3325.0,1.09576509]
[1768670875651,0.97957664,3326.5,3325.0,1.09576509]
[1768670875950,0.14128597,3326.6,3325.0,1.09576509]
[1768670876150,0.97957661,3326.5,3325.0,1.09576509]
[1768670876450,0.14128597,3326.6,3325.0,1.09576509]
[1768670876645,0.97961261,3326.5,3325.0,1.09576509]
[1768670876849,0.14128597,3326.6,3325.0,1.09576509]
[1768670877047,0.97961216,3326.5,3325.0,1.09576509]
[1768670877243,0.14128597,3326.6,3325.0,1.09576509]
[1768670877448,0.97966955,3326.5,3325.0,1.09576509]
[1768670877645,0.14128597,3326.6,3325.0,1.09576509]
[1768670877851,0.97966152,3326.5,3325.0,1.09576509]
[1768670878153,0.14128597,3326.6,3325.0,1.09576509]
[1768670878456,0.9797364,3326.5,3325.0,1.09576509]
[1768670878652,0.14128597,3326.6,3325.0,1.09576509]
[1768670878852,0.97973455,3326.5,3325.0,1.09576509]
[1768670879151,0.14128597,3326.6,3325.0,1.09576509]
[1768670879352,0.97981658,3326.5,3325.0,1.09576509]
[1768670879553,0.14128597,3326.6,3325.0,1.09576509]
[1768670879749,0.97981717,3326.5,3325.0,1.09576509]
[1768670879949,0.14128597,3326.6,3325.0,1.09576509]
[1768670880150,0.97982252,3326.5,3325.0,1.09576509]
[1768670880353,0.14128597,3326.6,3325.0,1.09576509]
[1768670880553,1.11194436,3326.5,3325.0,1.09576509]
[1768670880754,0.13204449,3326.5,3325.0,1.09576509]
[1768670881351,0.13204449,3326.5,3325.0,0.13065776]
[1768670881552,1.82933,3327.0,3325.1,0.14242308]
[1768670881857,0.97997255,3326.9,3325.1,0.14242308]
[1768670882059,0.97997255,3326.8,3325.2,0.14242308]
[1768670882354,3.009,3327.2,3325.4,0.96510733]
[1768670882355,0.13204449,3327.1,3325.4,0.96510733]
[1768670882559,0.97992444,3327.0,3325.4,0.96510733]
[1768670882759,0.97992444,3326.9,3325.4,1.10753041]
[1768670882958,0.97992444,3326.8,3325.4,1.10753041]
[1768670883159,1.81104449,3327.1,3325.4,1.10753041]
[1768670883359,0.98005035,3327.0,3325.4,1.10753041]
[1768670883656,0.98005035,3326.9,3325.4,1.10753041]
[1768670883858,0.98005035,3326.8,3325.4,1.10753041]
[1768670884058,1.81104449,3327.1,3325.4,1.10753041]
[1768670884355,0.97993852,3327.0,3325.5,0.14242308]
[1768670884555,0.97993852,3326.9,3325.5,0.14242308]
[1768670884761,0.13204449,3327.1,3325.5,0.14242308]
[1768670884961,0.97995439,3327.0,3325.5,0.14242308]
[1768670885261,0.97995439,3326.9,3325.5,0.14242308]
[1768670885447,0.13204449,3327.1,3325.5,0.14242308]
[1768670885651,0.97998168,3327.0,3325.5,0.14242308]
[1768670885856,0.97998168,3326.9,3325.5,0.14242308]
[1768670886057,0.13204449,3327.1,3325.5,0.14242308]
[1768670886349,0.97998166,3327.0,3325.5,0.14242308]
[1768670886548,0.97998166,3326.9,3325.5,0.14242308]
[1768670886747,0.13204449,3327.1,3325.5,0.14242308]
[1768670886951,0.98005373,3327.0,3325.5,0.14242308]
[1768670887151,0.98005373,3326.9,3325.5,0.14242308]
[1768670887357,0.13204449,3327.1,3325.5,0.14242308]
[1768670887563,0.98018668,3327.0,3325.5,0.14242308]
[1768670887851,0.98018668,3326.9,3325.5,0.14242308]
[1768670888058,0.13204449,3327.1,3325.5,0.14242308]
[1768670888261,0.98018794,3327.0,3325.5,0.14242308]
[1768670888461,0.98018794,3326.9,3325.5,0.14242308]
[1768670888659,0.13204449,3327.1,3325.5,0.14242308]
[1768670888860,0.98010323,3327.0,3325.5,0.14242308]
[1768670889066,0.98010323,3326.9,3325.5,0.14242308]
[1768670889363,0.13204449,3327.1,3325.5,0.14242308]
[1768670889562,0.98004074,3327.0,3325.5,0.14242308]
[1768670889754,0.98004074,3326.9,3325.5,0.14242308]
[1768670889956,0.13204449,3327.1,3325.5,0.14242308]
[1768670890162,0.98005432,3327.0,3325.5,0.14242308]
[1768670890353,0.98005432,3326.9,3325.5,0.14242308]
[1768670890553,0.13204449,3327.1,3325.5,0.14242308]
[1768670890752,0.98002596,3327.0,3325.5,0.14242308]
[1768670890957,0.98002596,3326.9,3325.5,0.14242308]
[1768670891158,0.13204449,3327.1,3325.5,0.14242308]
[1768670891361,0.98002186,3327.0,3325.5,0.14242308]
[1768670891564,0.13204449,3327.1,3325.5,0.14242308]
[1768670891749,0.97997196,3327.0,3325.5,0.14242308]
[1768670891956,0.13204449,3327.1,3325.5,0.14242308]
[1768670892154,0.97997199,3327.0,3325.5,0.14242308]
[1768670892449,0.13204449,3327.1,3325.5,0.14242308]
[1768670892659,0.97990578,3327.0,3325.5,0.14242308]
[1768670892860,0.13204449,3327.1,3325.5,0.14242308]
[1768670893155,0.97989465,3327.0,3325.5,0.14242308]
[1768670893359,0.13204449,3327.1,3325.5,0.14242308]
[1768670893560,0.97983668,3327.0,3325.5,0.14242308]
[1768670893758,0.13204449,3327.1,3325.5,0.14242308]
[1768670893959,0.97983667,3327.0,3325.5,0.14242308]
[1768670894161,0.13204449,3327.1,3325.5,0.14242308]
[1768670894365,0.97983115,3327.0,3325.5,0.14242308]
[1768670894560,0.13204449,3327.1,3325.5,0.14242308]
[1768670894863,0.97979471,3327.0,3325.5,0.14242308]
[1768670895069,0.13204449,3327.1,3325.5,0.14242308]
[1768670895258,0.9797947,3327.0,3325.5,0.14242308]
[1768670895461,0.13204449,3327.1,3325.5,0.14242308]
[1768670895660,0.97976599,3327.0,3325.5,0.14242308]
[1768670895857,0.13204449,3327.1,3325.5,0.14242308]
[1768670896162,0.97976602,3327.0,3325.5,0.14242308]
[1768670896362,0.13204449,3327.1,3325.5,0.14242308]
[1768670896661,0.98174311,3327.0,3325.5,0.14242308]
[1768670896865,0.13204449,3327.1,3325.5,0.14242308]
[1768670897060,0.98174434,3327.0,3325.5,0.14242308]
[1768670897258,0.13204449,3327.1,3325.5,0.14242308]
[1768670897561,0.98174222,3327.0,3325.5,0.14242308]
[1768670897760,0.13204449,3327.1,3325.5,0.14242308]
[1768670897962,0.98174221,3327.0,3325.5,0.14242308]
[1768670898162,0.13204449,3327.1,3325.5,0.14242308]
[1768670898363,0.98176165,3327.0,3325.5,0.14242308]
[1768670898565,0.13204449,3327.1,3325.5,0.14242308]
[1768670898863,0.98176063,3327.0,3325.5,0.14242308]
[1768670899062,0.13204449,3327.1,3325.5,0.14242308]
[1768670899263,0.98176061,3327.0,3325.5,0.14242308]
[1768670899463,0.13204449,3327.1,3325.5,0.14242308]
[1768670899663,0.98178578,3327.0,3325.5,0.14242308]
[1768670899858,0.13204449,3327.1,3325.5,0.14242308]
[1768670900063,0.9817858,3327.0,3325.5,0.14242308]
[1768670900263,0.13204449,3327.1,3325.5,0.14242308]
[1768670900562,1.11384391,3327.0,3325.5,0.14242308]
[1768670900763,0.13204449,3327.0,3325.5,0.14242308]
[1768670903270,0.98196463,3326.9,3325.5,0.14242308]
[1768670903472,0.98196463,3326.8,3325.5,0.14242308]
[1768670903674,0.98196463,3326.7,3325.5,0.14242308]
[1768670903867,0.13204449,3327.0,3325.5,0.14242308]
[1768670904165,0.98198249,3326.9,3325.5,0.14242308]
[1768670904365,0.98198249,3326.8,3325.5,0.14242308]
[1768670904569,0.98198249,3326.7,3325.5,0.14242308]
[1768670904872,0.13204449,3327.0,3325.5,0.14242308]
[1768670905072,0.98206186,3326.9,3325.5,0.14242308]
[1768670905263,0.98206186,3326.8,3325.5,0.14242308]
[1768670905463,0.98206186,3326.7,3325.5,0.14242308]
[1768670905764,0.13204449,3327.0,3325.5,0.14242308]
[1768670905963,0.98216429,3326.9,3325.5,0.14242308]
[1768670906163,0.98216429,3326.8,3325.5,0.14242308]
[1768670906471,0.98216429,3326.7,3325.5,0.14242308]
[1768670906667,0.13204449,3327.0,3325.5,0.14242308]
[1768670906964,0.9822884,3326.9,3325.5,0.14242308]
[1768670907169,0.9822884,3326.8,3325.5,0.14242308]
[1768670907363,0.9822884,3326.7,3325.5,0.14242308]
[1768670907564,0.13204449,3327.0,3325.5,0.14242308]
[1768670907763,0.98244862,3326.9,3325.5,0.14242308]
[1768670907973,0.98244862,3326.8,3325.5,0.14242308]
[1768670908176,0.98244862,3326.7,3325.5,0.14242308]
[1768670908377,0.13204449,3327.0,3325.5,0.14242308]
[1768670908674,0.98265011,3326.9,3325.5,0.14242308]
[1768670908872,0.98265011,3326.8,3325.5,0.14242308]
[1768670909063,0.98265011,3326.7,3325.5,0.14242308]
[1768670909260,0.98290224,3326.6,3325.5,0.14242308]
[1768670909476,0.13204449,3327.0,3325.5,0.14242308]
[1768670909673,0.98291631,3326.9,3325.5,0.14242308]
[1768670909977,0.98291631,3326.8,3325.5,0.14242308]
[1768670910170,0.98291631,3326.7,3325.5,0.14242308]
[1768670910370,0.98291631,3326.6,3325.5,0.14242308]
[1768670910577,0.13204449,3327.0,3325.5,0.14242308]
[1768670910775,0.9829298,3326.9,3325.5,0.14242308]
[1768670910975,0.9829298,3326.8,3325.5,0.14242308]
[1768670911170,0.9829298,3326.7,3325.5,0.14242308]
[1768670911372,0.9829298,3326.6,3325.5,0.14242308]
[1768670911572,0.13204449,3327.0,3325.5,0.14242308]
[1768670911772,0.98341288,3326.9,3325.5,0.14242308]
[1768670912076,0.98341288,3326.8,3325.5,0.14242308]
[1768670912277,0.98341288,3326.7,3325.5,0.14242308]
[1768670912467,0.98341288,3326.6,3325.5,0.14242308]
[1768670912667,0.13204449,3327.0,3325.5,0.14242308]
[1768670912878,0.98347733,3326.9,3325.5,0.14242308]
[1768670913080,0.98347733,3326.8,3325.5,0.14242308]
[1768670913378,0.13204449,3327.0,3325.5,0.14242308]
[1768670913572,0.98354503,3326.9,3325.5,0.14242308]
[1768670913877,0.98354503,3326.8,3325.5,0.14242308]
[1768670914077,0.13204449,3327.0,3325.5,0.14242308]
[1768670914277,0.98354518,3326.9,3325.5,0.14242308]
[1768670914469,0.98354518,3326.8,3325.5,0.14242308]
[1768670914665,0.13204449,3327.0,3325.5,0.14242308]
[1768670914870,0.98364414,3326.9,3325.5,0.14242308]
[1768670915066,0.98364414,3326.8,3325.5,0.14242308]
[1768670915271,0.13204449,3327.0,3325.5,0.14242308]
[1768670915472,0.98366008,3326.9,3325.5,0.14242308]
[1768670915682,0.98366008,3326.8,3325.5,0.14242308]
[1768670915872,0.13204449,3327.0,3325.5,0.14242308]
[1768670916073,1.12488096,3326.9,3325.5,0.14242308]
[1768670916276,0.98366007,3326.8,3325.5,0.14242308]
[1768670916485,0.14122089,3326.9,3325.5,0.14242308]
[1768670916783,0.98367564,3326.8,3325.5,0.14242308]
[1768670916982,0.14122089,3326.9,3325.5,0.14242308]
[1768670917184,0.98367604,3326.8,3325.5,0.14242308]
[1768670917382,0.14122089,3326.9,3325.5,0.14242308]
[1768670917590,0.9836922,3326.8,3325.5,0.14242308]
[1768670917883,0.14122089,3326.9,3325.5,0.14242308]
[1768670918183,0.98369202,3326.8,3325.4,0.96510733]
[1768670918381,0.14122089,3326.6,3325.0,0.15042]
[1768670920387,0.14122089,3326.6,3325.2,0.96510733]
[1768670922982,0.14122089,3326.6,3325.3,0.96510733]
[1768670927288,0.14122089,3326.6,3325.8,0.96491198]
[1768670928287,0.14122089,3326.6,3325.1,0.13533116]
[1768670928288,0.14122089,3327.1,3326.0,0.96491198]
[1768670928487,1.12012417,3327.0,3326.0,0.96491198]
[1768670928690,0.97890328,3326.9,3326.0,0.96491198]
[1768670928887,0.97890328,3326.8,3326.0,0.96491198]
[1768670929088,0.14122089,3327.0,3326.0,0.96491198]
[1768670929279,0.97890271,3326.9,3326.0,0.96491198]
[1768670929479,0.97890271,3326.8,3326.0,0.96491198]
[1768670929688,0.14122089,3327.0,3326.0,0.96491198]
[1768670929887,0.97890302,3326.9,3326.0,0.96491198]
[1768670930087,0.97890302,3326.8,3326.0,0.96491198]
[1768670930286,0.14122089,3327.0,3326.0,0.96491198]
[1768670930481,0.97890599,3326.9,3326.0,0.96491198]
[1768670930683,0.97890599,3326.8,3326.0,0.96491198]
[1768670930884,0.14122089,3327.0,3326.0,0.96491198]
[1768670931084,0.97890195,3326.9,3326.0,0.96491198]
[1768670931286,0.97890195,3326.8,3326.0,0.96491198]
[1768670931480,0.14122089,3327.0,3326.0,0.96491198]
[1768670931791,0.97889337,3326.9,3326.0,0.96491198]
[1768670931990,0.13841937,3327.4,3326.0,0.96491198]
[1768670932189,0.13841937,3327.2,3326.0,0.96491198]
[1768670932385,0.97889006,3327.1,3326.0,0.96491198]
[1768670932593,0.97889006,3327.0,3326.0,0.96491198]
[1768670932786,0.97889006,3326.9,3326.0,0.96491198]
[1768670932987,0.13841937,3327.2,3326.0,0.96491198]
[1768670933285,0.97887326,3327.1,3326.0,0.96491198]
[1768670933481,0.97887326,3327.0,3326.0,0.96491198]
[1768670933682,0.97887326,3326.9,3326.0,0.96491198]
[1768670933895,0.13841937,3327.2,3326.0,0.96491198]
[1768670934095,0.97885765,3327.1,3326.0,0.96491198]
[1768670934295,0.13841937,3326.9,3325.0,0.29382056]
[1768670934490,0.97885765,3326.8,3325.6,0.96491198]
[1768670940512,0.13841937,3326.9,3325.6,0.96491198]
[1768670940713,0.97889446,3326.8,3325.6,0.96491198]
[1768670940908,0.13841937,3326.9,3325.6,0.96491198]
[1768670941109,0.97889467,3326.8,3325.6,0.96491198]
[1768670941307,1.10333135,3326.9,3325.6,0.96491198]
[1768670941618,0.97889975,3326.8,3325.6,0.96491198]
[1768670941804,1.10333135,3326.9,3325.6,0.96491198]
[1768670942007,0.97889975,3326.8,3325.6,0.96491198]
[1768670942207,1.10333135,3326.9,3325.6,0.96491198]
[1768670942402,0.97890412,3326.8,3325.6,0.96491198]
[1768670942602,1.10333135,3326.9,3325.6,0.96491198]
[1768670942807,0.97890603,3326.8,3325.6,0.96491198]
[1768670943008,0.13841937,3326.9,3325.6,0.96491198]
[1768670943208,0.97890566,3326.8,3325.6,0.96491198]
[1768670943408,0.13841937,3326.9,3325.6,0.96491198]
[1768670943708,0.97891358,3326.8,3325.6,0.96491198]
[1768670944012,0.13841937,3326.9,3325.6,0.96491198]
[1768670944214,0.97891358,3326.8,3325.6,0.96491198]
[1768670944408,0.13841937,3326.9,3325.6,0.96491198]
[1768670944716,0.97892205,3326.8,3325.6,0.96491198]
[1768670944915,0.13841937,3326.9,3325.6,0.96491198]
[1768670945114,0.97892205,3326.8,3325.6,0.96491198]
[1768670945314,0.13841937,3326.9,3325.6,0.96491198]
[1768670945514,0.97893176,3326.8,3325.6,0.96491198]
[1768670945715,0.13841937,3326.9,3325.6,0.96491198]
[1768670945914,0.97893176,3326.8,3325.6,0.96491198]
[1768670946118,0.13841937,3326.9,3325.6,0.96491198]
[1768670946318,0.97893678,3326.8,3325.6,0.96491198]
[1768670946517,0.13841937,3326.9,3325.6,0.96491198]
[1768670946819,0.97894286,3326.8,3325.6,0.96491198]
[1768670947006,0.13841937,3326.9,3325.6,0.96491198]
[1768670947209,0.97894286,3326.8,3325.6,0.96491198]
[1768670947409,0.13841937,3326.9,3325.6,0.96491198]
[1768670947611,0.97895437,3326.8,3325.6,0.96491198]
[1768670947910,0.13841937,3326.9,3325.6,0.96491198]
[1768670948112,0.97895437,3326.8,3325.6,0.96491198]
[1768670948314,0.13841937,3326.9,3325.6,0.96491198]
[1768670948515,0.97895492,3326.8,3325.6,0.96491198]
[1768670948814,0.13841937,3326.9,3325.6,0.96491198]
[1768670949113,0.97895492,3326.8,3325.6,0.96491198]
[1768670949314,0.13841937,3326.9,3325.6,0.96491198]
[1768670949612,0.97898655,3326.8,3325.6,0.96491198]
[1768670949812,0.13841937,3326.9,3325.6,0.96491198]
[1768670950014,0.97898655,3326.8,3325.6,0.96491198]
[1768670950212,0.13841937,3326.9,3325.6,0.96491198]
[1768670950414,0.97899064,3326.8,3325.6,0.96491198]
[1768670950615,0.13841937,3326.9,3325.6,0.96491198]
[1768670950816,0.9789907,3326.8,3325.8,0.96491198]
[1768670951017,0.13841937,3326.9,3325.8,0.96491198]
[1768670951217,0.97899053,3326.8,3325.8,0.96491198]
[1768670951417,0.13841937,3326.9,3325.8,0.96491198]
[1768670951619,0.97899273,3326.8,3325.8,0.96491198]
[1768670951814,1.679,3327.1,3325.4,0.14340056]
[1768670951815,0.96491198,3327.4,3326.0,0.96491198]
[1768670952013,2.657973,3327.3,3326.2,0.96491198]
[1768670952211,0.978973,3327.2,3326.2,0.96491198]
[1768670952412,0.978973,3327.1,3326.2,0.96491198]
[1768670952723,0.978973,3327.0,3326.2,0.96491198]
[1768670953022,0.978973,3326.9,3326.2,0.96491198]
[1768670953321,1.679,3327.3,3326.2,0.96491198]
[1768670953519,0.97876993,3327.2,3326.2,0.96491198]
[1768670953713,0.97876993,3327.1,3326.2,0.96491198]
[1768670953915,0.97876993,3327.0,3326.2,0.96491198]
[1768670954114,0.97876993,3326.9,3326.2,0.96491198]
[1768670954321,1.679,3327.3,3326.2,0.96491198]
[1768670954523,0.97870802,3327.2,3326.2,0.96491198]
[1768670954719,0.97870802,3327.1,3326.2,0.96491198]
[1768670955022,0.97870802,3327.0,3326.2,0.96491198]
[1768670955218,0.97870802,3326.9,3326.2,0.96491198]
[1768670955523,1.679,3327.3,3326.2,0.96491198]
[1768670955722,0.97866016,3327.2,3326.2,0.96491198]
[1768670956021,0.97866016,3327.1,3326.2,0.96491198]
[1768670956222,0.97866016,3327.0,3326.2,0.96491198]
[1768670956424,0.97866016,3326.9,3326.2,0.96491198]
[1768670956625,1.679,3327.3,3326.2,0.96491198]
[1768670956828,0.9726862,3327.2,3326.2,0.96491198]
[1768670957020,0.9726862,3327.1,3326.2,0.96491198]
[1768670957221,0.9726862,3327.0,3326.2,0.96491198]
[1768670957417,0.9726862,3326.9,3326.2,0.96491198]
[1768670957616,1.679,3327.3,3326.2,0.96491198]
[1768670957817,0.97264898,3327.2,3326.2,0.96491198]
[1768670958018,0.97264898,3327.1,3326.2,0.96491198]
[1768670958219,0.97264898,3327.0,3326.2,0.96491198]
[1768670958418,0.97264898,3326.9,3326.2,0.96491198]
[1768670958615,1.679,3327.3,3326.1,0.96491198]
[1768670958814,0.97261681,3327.2,3326.1,0.96491198]
[1768670959027,0.97261681,3327.1,3326.1,0.96491198]
[1768670959230,0.97261681,3327.0,3326.1,0.96491198]
[1768670959427,0.97261681,3326.9,3326.1,0.96491198]
[1768670959728,1.679,3327.3,3326.1,0.96491198]
[1768670959917,0.97259074,3327.2,3326.1,0.96491198]
[1768670960121,0.97259074,3327.1,3326.1,0.96491198]
[1768670960419,0.97259074,3327.0,3326.1,0.96491198]
[1768670960618,0.97259074,3326.9,3326.1,0.96491198]
[1768670960816,1.679,3327.3,3326.1,0.96491198]
[1768670961030,0.97256969,3327.2,3326.1,0.96491198]
[1768670961230,0.97256969,3327.1,3326.1,0.96491198]
[1768670961530,0.97256969,3327.0,3326.1,0.96491198]
[1768670961722,0.97256969,3326.9,3326.1,0.96491198]
[1768670962022,1.679,3327.3,3326.1,0.96491198]
[1768670962231,0.97254583,3327.2,3326.1,0.96491198]
[1768670962436,0.97254583,3327.1,3326.1,0.96491198]
[1768670962617,0.97254583,3327.0,3326.1,0.96491198]
[1768670962821,1.679,3327.3,3326.1,0.96491198]
[1768670963021,0.97250155,3327.2,3326.1,0.96491198]
[1768670963222,0.97250155,3327.1,3326.1,0.96491198]
[1768670963527,1.679,3327.3,3326.1,0.96491198]
[1768670963724,0.97246871,3327.2,3326.1,0.96491198]
[1768670963930,0.97246871,3327.1,3326.1,0.96491198]
[1768670964125,1.679,3327.3,3326.1,0.96491198]
[1768670964325,0.97244965,3327.2,3326.1,0.96491198]
[1768670964523,0.97244965,3327.1,3326.1,0.96491198]
[1768670964734,1.679,3327.3,3326.1,0.96491198]
[1768670964929,0.97243938,3327.2,3326.1,0.96491198]
[1768670965120,0.97243938,3327.1,3326.1,0.96491198]
[1768670965324,1.679,3327.3,3326.1,0.96491198]
[1768670965525,0.97242183,3327.2,3326.1,0.96491198]
[1768670965728,0.97242183,3327.1,3326.1,0.96491198]
[1768670965929,1.679,3327.3,3326.1,0.96491198]
[1768670966129,0.97242778,3327.2,3326.1,0.96491198]
[1768670966330,0.97242778,3327.1,3326.1,0.96491198]
[1768670966530,1.679,3327.3,3326.1,0.96491198]
[1768670966730,0.97241832,3327.2,3326.1,0.96491198]
[1768670966932,0.97241832,3327.1,3326.1,0.96491198]
[1768670967129,1.679,3327.3,3326.4,0.96491198]
[1768670967339,0.97238471,3327.2,3326.2,0.96491198]
[1768670967541,0.97238471,3327.1,3326.2,0.96491198]
[1768670967739,1.679,3327.3,3326.2,0.96491198]
[1768670967939,0.97238453,3327.2,3326.2,0.96491198]
[1768670968139,0.97238453,3327.1,3326.2,0.96491198]
[1768670968333,0.13841937,3327.4,3326.2,0.96491198]
[1768670968535,0.97233729,3327.3,3326.6,0.96491198]
[1768670968736,1.679,3327.6,3326.0,1.1047739]
[1768670968931,0.97231735,3327.5,3326.5,0.96491198]
[1768670969131,0.97231735,3327.4,3326.5,0.96491198]
[1768670969335,0.97231735,3327.3,3326.5,0.96491198]
[1768670969631,1.679,3327.6,3326.5,0.96491198]
[1768670969834,0.97215395,3327.5,3326.5,0.96491198]
[1768670970039,0.97215395,3327.4,3326.5,0.96491198]
[1768670970235,0.97215395,3327.3,3326.5,0.96491198]
[1768670970433,1.679,3327.6,3326.5,0.96491198]
[1768670970633,0.9720298,3327.5,3326.5,0.96491198]
[1768670970829,0.9720298,3327.4,3326.5,0.96491198]
[1768670971027,1.679,3327.6,3326.5,0.96491198]
[1768670971231,0.9720298,3327.5,3326.5,0.96491198]
[1768670971427,0.9720298,3327.4,3326.5,0.96491198]
[1768670971632,1.679,3327.6,3326.5,0.96491198]
[1768670971948,0.97193697,3327.5,3326.6,0.96491198]
[1768670972241,0.97193697,3327.4,3326.6,0.96491198]
[1768670972443,1.679,3327.6,3326.6,0.96491198]
[1768670972633,0.97186722,3327.5,3326.6,0.96491198]
[1768670972835,0.97186722,3327.4,3326.6,0.96491198]
[1768670973039,1.679,3327.6,3326.6,0.96491198]
[1768670973233,0.97186724,3327.5,3326.6,0.96491198]
[1768670973430,0.97186724,3327.4,3326.6,0.96491198]
[1768670973634,1.679,3327.6,3326.6,0.96491198]
[1768670973834,0.97181419,3327.5,3326.6,0.96491198]
[1768670974045,0.97181419,3327.4,3326.6,0.96491198]
[1768670974247,1.679,3327.6,3326.6,0.96491198]
[1768670974544,0.97177716,3327.5,3326.6,0.96491198]
[1768670975444,0.97177716,3327.4,3326.6,0.96491198]
[1768670975645,1.679,3327.6,3326.6,0.96491198]
[1768670975839,0.97175491,3327.5,3326.6,0.96491198]
[1768670976038,0.97175491,3327.4,3326.6,0.96491198]
[1768670976239,1.679,3327.6,3326.6,0.96491198]
[1768670976439,0.97174675,3327.5,3326.6,0.96491198]
[1768670976640,0.97174675,3327.4,3326.6,0.96491198]
[1768670976840,1.679,3327.6,3326.6,0.96491198]
[1768670977050,0.97174735,3327.5,3326.6,0.96491198]
[1768670977240,0.97174735,3327.4,3326.6,0.96491198]
[1768670977442,1.679,3327.6,3326.6,0.96491198]
[1768670977646,0.97175435,3327.5,3326.6,0.96491198]
[1768670977847,0.97175435,3327.4,3326.6,0.96491198]
[1768670978040,1.679,3327.6,3326.6,0.96491198]
[1768670978241,0.97175435,3327.5,3326.6,0.96491198]
[1768670978441,0.97175435,3327.4,3326.6,0.96491198]
[1768670978646,1.679,3327.6,3326.6,0.96491198]
[1768670978845,0.9717752,3327.5,3326.6,0.96491198]
[1768670979039,0.9717752,3327.4,3326.6,0.96491198]
[1768670979237,1.679,3327.6,3326.5,0.96491198]
[1768670979447,0.97181059,3327.5,3326.5,0.96491198]
[1768670979648,0.97181059,3327.4,3326.5,0.96491198]
[1768670979949,1.679,3327.6,3326.5,0.96491198]
[1768670980148,0.97181129,3327.5,3326.5,0.96491198]
[1768670980453,0.97181129,3327.4,3326.5,0.96491198]
[1768670980643,1.679,3327.6,3326.5,0.96491198]
[1768670980844,0.97186446,3327.5,3326.5,0.96491198]
[1768670981044,0.97186446,3327.4,3326.5,0.96491198]
[1768670981241,1.679,3327.6,3326.5,0.96491198]
[1768670981440,0.97193372,3327.5,3326.5,0.96491198]
[1768670981642,0.97193372,3327.4,3326.5,0.96491198]
[1768670981842,1.679,3327.6,3326.5,0.96491198]
[1768670982039,0.97193372,3327.5,3326.5,0.96491198]
[1768670982239,0.97193372,3327.4,3326.5,0.96491198]
[1768670982441,0.97193372,3327.3,3326.5,0.96491198]
[1768670982641,1.679,3327.6,3326.5,0.96491198]
[1768670982941,0.97193765,3327.5,3326.5,0.96491198]
[1768670983142,0.97193765,3327.4,3326.5,0.96491198]
[1768670983442,0.97193765,3327.3,3326.5,0.96491198]
[1768670983644,1.679,3327.6,3326.5,0.96491198]
[1768670983950,0.9719458,3327.5,3326.5,0.96491198]
[1768670984149,1.679,3327.6,3326.5,0.96491198]
[1768670984150,0.9719458,3327.4,3326.5,0.96491198]
[1768670984351,1.679,3327.6,3326.5,0.96491198]
[1768670984649,0.97195887,3327.5,3326.5,0.96491198]
[1768670984850,0.97195887,3327.4,3326.5,0.96491198]
[1768670985042,1.679,3327.6,3326.5,0.96491198]
[1768670985237,0.97195904,3327.5,3326.5,0.96491198]
[1768670985450,1.679,3327.6,3326.5,0.96491198]
[1768670985451,0.97195904,3327.4,3326.5,0.96491198]
[1768670985649,0.97195904,3327.3,3326.5,0.96491198]
[1768670985850,1.679,3327.6,3326.5,0.96491198]
[1768670986052,0.97197972,3327.5,3326.5,0.96491198]
[1768670986346,0.97197972,3327.4,3326.5,0.96491198]
[1768670986551,0.97197972,3327.3,3326.5,0.96491198]
[1768670986751,1.679,3327.6,3326.5,0.96491198]
[1768670986952,0.97148562,3327.5,3326.5,0.96491198]
[1768670987139,0.97148562,3327.4,3326.5,0.96491198]
[1768670987343,0.97148562,3327.3,3326.5,0.96491198]
[1768670987551,1.679,3327.6,3326.5,0.96491198]
[1768670987744,0.97151695,3327.5,3326.5,0.96491198]
[1768670987947,0.97151695,3327.4,3326.5,0.96491198]
[1768670988143,0.97151695,3327.3,3326.5,0.96491198]
[1768670988346,1.679,3327.6,3326.5,0.96491198]
[1768670988547,0.97155574,3327.5,3326.5,0.96491198]
[1768670988859,0.97155574,3327.4,3326.5,0.96491198]
[1768670989046,0.97155574,3327.3,3326.5,0.96491198]
[1768670989246,1.679,3327.6,3326.5,0.96491198]
[1768670989454,0.97160286,3327.5,3326.2,0.96443784]
[1768670989754,0.97160286,3327.4,3326.2,0.96443784]
[1768670989954,0.97160286,3327.3,3326.2,0.96443784]
[1768670990157,1.679,3327.6,3326.2,0.96443784]
[1768670990356,0.97165929,3327.5,3326.2,0.96443784]
[1768670990556,0.97165929,3327.4,3326.2,0.96443784]
[1768670990754,0.97165929,3327.3,3326.2,0.96443784]
[1768670990955,1.679,3327.6,3326.2,0.96443784]
[1768670991154,0.97165929,3327.5,3326.2,0.96443784]
[1768670991354,0.97165929,3327.4,3326.2,0.96443784]
[1768670991547,0.97165929,3327.3,3326.2,0.96443784]
[1768670991747,1.679,3327.6,3326.2,0.96443784]
[1768670991949,0.97172615,3327.5,3326.2,0.96443784]
[1768670992148,0.97172615,3327.4,3326.2,0.96443784]
[1768670992357,0.97172615,3327.3,3326.2,0.96443784]
[1768670992660,1.679,3327.6,3326.2,0.96443784]
[1768670992850,0.97180747,3327.5,3326.2,0.96443784]
[1768670993048,0.97180747,3327.4,3326.2,0.96443784]
[1768670993249,0.97180747,3327.3,3326.2,0.96443784]
[1768670993449,1.679,3327.6,3326.2,0.96443784]
[1768670993745,0.97188204,3327.5,3326.2,0.96443784]
[1768670993947,0.97188204,3327.4,3326.2,0.96443784]
[1768670994149,0.97188204,3327.3,3326.2,0.96443784]
[1768670994348,1.679,3327.6,3326.2,0.96443784]
[1768670994558,0.97196831,3327.5,3326.2,0.96443784]
[1768670994756,0.97196831,3327.4,3326.2,0.96443784]
[1768670994958,0.97196831,3327.3,3326.2,0.96443784]
[1768670995160,1.679,3327.6,3326.2,0.96443784]
[1768670995359,0.97207658,3327.5,3326.2,0.96443784]
[1768670995553,0.97207658,3327.4,3326.2,0.96443784]
[1768670995753,0.97207658,3327.3,3326.2,0.96443784]
[1768670995958,1.679,3327.6,3326.2,0.96443784]
[1768670996158,0.97207634,3327.5,3326.2,0.96443784]
[1768670996378,0.97207634,3327.4,3326.2,0.96443784]
[1768670996658,0.97207634,3327.3,3326.2,0.96443784]
[1768670996854,1.679,3327.6,3326.2,0.96443784]
[1768670997058,0.97223079,3327.5,3326.2,0.96443784]
[1768670997356,0.97223079,3327.4,3326.2,0.96443784]
[1768670997557,0.97223079,3327.3,3326.2,0.96443784]
[1768670997758,1.679,3327.6,3326.2,0.96443784]
[1768670997957,0.97237336,3327.5,3326.2,0.96443784]